fUST/lending_fUST_20241123
["ID","MTS","AMOUNT","RATE_DAILY","PERIOD"]
[343044970,1732309832827,-500.0,0.00018873,2]
[343044972,1732309832836,-500.0,0.00018873,2]
[343044974,1732309832845,-500.0,0.00018873,2]
[343044976,1732309832856,-500.0,0.00018873,2]
[343044978,1732309832865,-311.36748797,0.000189,2]
[343044980,1732309832875,-69156.14002814,0.000189,2]
[343044982,1732309832885,-688.28478027,0.00019292,2]
[343044984,1732309832895,-605.158572,0.00019392,2]
[343044986,1732309832904,-152.0,0.00019436,2]
[343044988,1732309832913,-1653.61205038,0.00019524,2]
[343044990,1732309832923,-500.0,0.00019573,2]
[343044992,1732309832932,-500.0,0.00019573,2]
[343044994,1732309832942,-512.59528102,0.00019573,2]
[343044996,1732309832955,-500.0,0.00019573,2]
[343044998,1732309832964,-255.19,0.00019589,3]
[343045000,1732309832975,-593.3436844,0.00019599,2]
[343045002,1732309832984,-200.0,0.00019599,2]
[343045004,1732309832994,-500.0,0.00019599,2]
[343045006,1732309833002,-500.0,0.00019599,2]
[343045008,1732309833012,-500.0,0.00019599,2]
[343045010,1732309833024,-386.91012939,0.00019599,2]
[343045012,1732309833034,-500.0,0.00019599,2]
[343045014,1732309833043,-500.0,0.00019599,2]
[343045016,1732309833053,-500.0,0.00019599,2]
[343045018,1732309833063,-500.0,0.00019599,2]
[343045020,1732309833074,-500.0,0.00019599,2]
[343045022,1732309833084,-500.0,0.00019599,2]
[343045024,1732309833094,-500.0,0.00019599,2]
[343045026,1732309833105,-474.95841361,0.00019599,2]
[343045028,1732309833116,-261.68199613,0.00019599,2]
[343045030,1732309833126,-4976.43532459,0.000196,2]
[343045032,1732309833138,-9464.69765318,0.000196,2]
[343045035,1732309833150,-773.4440198,0.000196,2]
[343045037,1732309833162,-15583.75473076,0.000196,2]
[343045053,1732309833423,-18748.77287729,0.000196,2]
[343045433,1732309838638,-500.0,0.00019573,2]
[343045435,1732309838648,-500.0,0.00019573,2]
[343045437,1732309838658,-500.0,0.00019573,2]
[343045439,1732309838667,-255.19,0.0001959,3]
[343045441,1732309838676,-13551.87571029,0.000196,2]
[343045444,1732309838695,-3296.39452852,0.000196,2]
[343045451,1732309838752,-5324.87351265,0.000196,2]
[343045872,1732309842839,-7733.29650066,0.000196,2]
[343045946,1732309843487,-69075.30322638,0.000196,2]
[343045948,1732309843499,-1819.16403343,0.000196,2]
[343047593,1732309954887,829.27,0.00029615,120]
[343047595,1732310025851,360.308739,0.00013973,2]
[343047614,1732310728056,342.293302,0.00013973,2]
[343047636,1732310918745,199.26493911,0.00027,60]
[343047637,1732310918771,1.47012178,0.00027,60]
[343047684,1732310951944,-162.07930823,0.00017741,2]
[343047685,1732310951977,-173.065702,0.00019178,2]
[343047686,1732310952009,-192.24372,0.00019178,2]
[343047687,1732310952047,-2053.66539357,0.00019799,2]
[343047688,1732310952060,-162.07930823,0.00019799,2]
[343047689,1732310952072,-173.065702,0.00019799,2]
[343047690,1732310952084,-192.24372,0.00019799,2]
[343047691,1732310952095,-470.50302217,0.00019799,2]
[343047692,1732310952105,-151.0,0.000198,2]
[343047693,1732310952115,-1355.64134219,0.00019873,2]
[343047694,1732310952124,-751.67782235,0.00019873,2]
[343047695,1732310952133,-170.12,0.0001989,3]
[343047696,1732310952143,-152.61495926,0.0001989,3]
[343047743,1732311032850,-357.78504074,0.0001989,3]
[343047744,1732311032860,-300.0,0.00019898,2]
[343047745,1732311032870,-236.17280926,0.00019898,2]
[343047748,1732311033176,-63.82719074,0.00019898,2]
[343047749,1732311033186,-500.0,0.00019899,2]
[343047750,1732311033196,-195.74244401,0.00019899,2]
[343047751,1732311033205,-452.14844796,0.00019899,2]
[343047752,1732311033215,-611.23669974,0.00019899,2]
[343047753,1732311033225,-500.0,0.00019899,2]
[343047754,1732311033234,-500.0,0.00019899,2]
[343047755,1732311033244,-500.0,0.00019899,2]
[343047756,1732311033254,-500.0,0.00019899,2]
[343047757,1732311033264,-263.24381199,0.000199,2]
[343047758,1732311033274,-15099.01070028,0.000199,2]
[343047759,1732311033289,-458.93164188,0.000199,2]
[343047760,1732311033300,-4993.28793655,0.000199,2]
[343048223,1732311038684,-25603.04490288,0.000199,2]
[343049835,1732311503418,345.178637,0.00013973,2]
[343049971,1732312153737,327.919705,0.00013973,2]
[343050401,1732312232154,-360.840937,0.00018177,2]
[343050403,1732312232164,-1059.1448301,0.00018218,2]
[343050405,1732312232174,-300.0,0.00018345,2]
[343050407,1732312232183,-300.0,0.00018345,2]
[343050409,1732312232192,-4119.85795968,0.00018346,2]
[343050423,1732312232310,-10875.92047334,0.00018346,2]
[343050427,1732312232322,-9672.55194418,0.00018346,2]
[343050430,1732312232331,-360.840937,0.00018862,2]
[343050433,1732312232341,-1663.2589117,0.0001904,2]
[343050436,1732312232350,-9702.10798123,0.00019119,2]
[343050439,1732312232359,-166.973183,0.00019178,2]
[343050442,1732312232368,-9702.10798123,0.00019179,2]
[343050445,1732312232377,-673.29335555,0.00019348,2]
[343050447,1732312232387,-9702.10798123,0.0001946,2]
[343050449,1732312232396,-1561.63989541,0.00019547,2]
[343050451,1732312232405,-360.840937,0.00019547,2]
[343050453,1732312232415,-1118.79412123,0.000197,2]
[343050455,1732312232424,-381.88204628,0.00019773,2]
[343050457,1732312232433,-154.40226183,0.00019773,2]
[343050459,1732312232442,-500.0,0.00019773,2]
[343050461,1732312232452,-500.0,0.00019773,2]
[343050463,1732312232462,-502.43149528,0.00019773,2]
[343050465,1732312232471,-500.0,0.00019773,2]
[343050467,1732312232480,-311.9,0.0001979,3]
[343050469,1732312232489,-155.95,0.0001979,3]
[343050471,1732312232498,-467.86,0.0001979,3]
[343050473,1732312232507,-500.0,0.00019799,2]
[343050475,1732312232517,-500.0,0.00019799,2]
[343050477,1732312232526,-123.37358014,0.00019799,2]
[343051017,1732312238002,-376.62641986,0.00019799,2]
[343051019,1732312238012,-500.0,0.00019799,2]
[343051021,1732312238021,-500.0,0.00019799,2]
[343051023,1732312238031,-454.6284557,0.00019799,2]
[343051980,1732312823854,319.821934,0.00013973,2]
[343052084,1732313432200,-500.0,0.00018077,2]
[343052086,1732313432210,-300.0,0.00018672,2]
[343052088,1732313432220,-300.0,0.00018672,2]
[343052090,1732313432230,-10855.9204733,0.00018673,2]
[343052092,1732313432239,-157.676933,0.00019178,2]
[343052094,1732313432249,-192.24372,0.00019178,2]
[343052096,1732313432258,-946.96274985,0.00019689,2]
[343052099,1732313432269,-19068.70589603,0.00019689,2]
[343052101,1732313432279,-155.95,0.0001969,3]
[343052103,1732313432288,-467.85,0.0001969,3]
[343052105,1732313432297,-530.07642675,0.00019699,2]
[343052107,1732313432306,-164.06137092,0.00019699,2]
[343052109,1732313432315,-545.3715443,0.00019699,2]
[343052110,1732313432324,-500.0,0.00019699,2]
[343052113,1732313432334,-500.0,0.00019699,2]
[343052115,1732313432344,-500.0,0.00019699,2]
[343052117,1732313432354,-500.0,0.00019699,2]
[343052119,1732313432364,-484.9719756,0.00019699,2]
[343052121,1732313432374,-442.32963019,0.00019699,2]
[343052123,1732313432383,-500.0,0.00019699,2]
[343052124,1732313432393,-500.0,0.00019699,2]
[343052126,1732313432403,-500.0,0.00019699,2]
[343052128,1732313432413,-500.0,0.00019699,2]
[343052130,1732313432422,-500.0,0.00019699,2]
[343052132,1732313432432,-500.0,0.00019699,2]
[343052135,1732313432444,-282.75620617,0.00019699,2]
[343052137,1732313432454,-351.15406773,0.00019699,2]
[343052139,1732313432470,-148.84593227,0.00019699,2]
[343052141,1732313432480,-500.0,0.00019699,2]
[343052143,1732313432491,-269.43538633,0.00019699,2]
[343052145,1732313432500,-14301.55063864,0.000197,2]
[343052147,1732313432510,-10187.8245996,0.000197,2]
[343052150,1732313432526,-239812.1754004,0.000197,2]
[343052152,1732313432536,-895.03529696,0.00019799,2]
[343052154,1732313432546,-254.29642883,0.00019899,2]
[343052156,1732313432555,-160.62216249,0.00019973,2]
[343052158,1732313432564,-452.50595125,0.00019973,2]
[343052160,1732313432575,-500.0,0.00019999,2]
[343052162,1732313432584,-500.0,0.00019999,2]
[343052164,1732313432593,-629.96180347,0.00019999,2]
[343052166,1732313432603,-2208.94741778,0.0002,2]
[343052168,1732313432612,-160.0,0.0002,2]
[343052170,1732313432622,-10831.80625908,0.0002,2]
[343052172,1732313432631,-587.0,0.0002,2]
[343052174,1732313432640,-586.0,0.0002,2]
[343052176,1732313432650,-586.0,0.0002,2]
[343052178,1732313432659,-586.0,0.0002,2]
[343052180,1732313432669,-151.0,0.0002,2]
[343052182,1732313432678,-151.0,0.0002,2]
[343052184,1732313432687,-151.0,0.0002,2]
[343052186,1732313432699,-151.0,0.0002,2]
[343052188,1732313432709,-151.0,0.0002,2]
[343052190,1732313432719,-151.0,0.0002,2]
[343052205,1732313432840,-151.0,0.0002,2]
[343052207,1732313432854,-151.0,0.0002,2]
[343052209,1732313432864,-252.654914,0.0002,2]
[343052211,1732313432873,-252.654914,0.0002,2]
[343052214,1732313432882,-252.654914,0.0002,2]
[343052216,1732313432892,-252.654914,0.0002,2]
[343052218,1732313432902,-213086.25924552,0.0002,2]
[343052640,1732313438253,-4533.74075448,0.0002,2]
[343052642,1732313438264,-2335.01,0.000201,2]
[343052643,1732313438274,-407.0,0.0002036,2]
[343052645,1732313438285,-319.821934,0.00020447,2]
[343052647,1732313438296,-420.0,0.0002054,2]
[343052649,1732313438306,-151.0,0.000206,3]
[343052650,1732313438316,-300.0,0.000209,9]
[343052652,1732313438326,-895.03529696,0.00020999,2]
[343052654,1732313438336,-3000.0,0.00021,2]
[343052656,1732313438347,-3000.0,0.0002101,2]
[343052657,1732313438356,-3000.0,0.0002102,2]
[343052659,1732313438366,-3000.0,0.0002103,2]
[343052662,1732313438376,-1385.65104954,0.0002104,2]
[343052677,1732313438520,-1614.34895046,0.0002104,2]
[343052679,1732313438531,-151.0,0.0002104,2]
[343052681,1732313438540,-151.0,0.0002104,2]
[343052683,1732313438550,-267.25052935,0.0002104,2]
[343052684,1732313438560,-151.0,0.0002104,2]
[343052686,1732313438570,-252.654914,0.0002104,2]
[343052688,1732313438580,-149.08759547,0.0002104,2]
[343052690,1732313438591,-103.56731853,0.0002104,2]
[343052692,1732313438601,-224.02768147,0.00021045,2]
[343052694,1732313438613,-275.97231853,0.00021045,2]
[343052696,1732313438623,-500.0,0.00021045,2]
[343052698,1732313438632,-176.08023503,0.00021045,2]
[343052700,1732313438642,-110.50027636,0.00021045,2]
[343052821,1732313440003,-211.91369069,0.00019999,2]
[343052823,1732313440013,-162.90677893,0.00021045,2]
[343052826,1732313440023,-893.59890064,0.0002105,2]
[343052828,1732313440034,-2106.40109936,0.0002105,2]
[343052830,1732313440046,-311.9,0.0002106,3]
[343052832,1732313440056,-871.71363436,0.0002106,2]
[343052940,1732313443467,-160.0,0.0002,2]
[343052942,1732313443478,-573.439999,0.00020849,2]
[343053210,1732313446152,-1507.78307392,0.00020849,2]
[343053213,1732313446172,-2128.28636564,0.0002106,2]
[343053215,1732313446182,-3000.0,0.0002107,2]
[343053217,1732313446192,-3000.0,0.0002108,2]
[343053220,1732313446205,-306.05468856,0.0002109,2]
[343053571,1732313551703,287.83974,0.00013973,2]
[343053579,1732314379087,273.447753,0.00013973,2]
[343053670,1732314575697,218.262526,0.00024658,120]
[343053949,1732314635553,-183.3976567,0.00017433,2]
[343053951,1732314635562,-2711.607449,0.00018325,2]
[343053953,1732314635571,-300.0,0.00018582,2]
[343053955,1732314635581,-300.0,0.00018582,2]
[343053957,1732314635590,-2214.74884739,0.00018583,2]
[343053959,1732314635601,-3893.13893468,0.00018583,2]
[343053970,1732314635699,-18792.11221793,0.00018583,2]
[343053972,1732314635709,-153.0,0.00018956,2]
[343053988,1732314635718,-153.0,0.00018956,2]
[343053991,1732314635867,-153.0,0.00018956,2]
[343053994,1732314635876,-963.93702149,0.00019598,2]
[343053996,1732314635887,-906.01955386,0.00019599,2]
[343053998,1732314635896,-500.0,0.00019599,2]
[343054000,1732314635905,-500.0,0.00019599,2]
[343054002,1732314635915,-500.0,0.00019599,2]
[343054004,1732314635924,-481.45733446,0.00019599,2]
[343054006,1732314635934,-500.0,0.00019599,2]
[343054008,1732314635943,-500.0,0.00019599,2]
[343054009,1732314635952,-500.0,0.00019599,2]
[343054012,1732314635963,-500.0,0.00019599,2]
[343054013,1732314635972,-500.0,0.00019599,2]
[343054015,1732314635982,-500.0,0.00019599,2]
[343054017,1732314635992,-167.63384103,0.00019599,2]
[343054020,1732314636002,-500.0,0.00019599,2]
[343054022,1732314636011,-500.0,0.00019599,2]
[343054024,1732314636021,-500.0,0.00019599,2]
[343054026,1732314636030,-500.0,0.00019599,2]
[343054028,1732314636040,-500.0,0.00019599,2]
[343054030,1732314636050,-500.0,0.00019599,2]
[343054032,1732314636059,-563.08503769,0.00019599,2]
[343054034,1732314636068,-500.0,0.00019599,2]
[343054036,1732314636078,-500.0,0.00019599,2]
[343054038,1732314636087,-500.0,0.00019599,2]
[343054040,1732314636097,-500.0,0.00019599,2]
[343054042,1732314636106,-500.0,0.00019599,2]
[343054044,1732314636115,-500.0,0.00019599,2]
[343054046,1732314636124,-500.0,0.00019599,2]
[343054048,1732314636134,-500.0,0.00019599,2]
[343054050,1732314636143,-500.0,0.00019599,2]
[343054052,1732314636152,-500.0,0.00019599,2]
[343054054,1732314636161,-500.0,0.00019599,2]
[343054056,1732314636171,-500.0,0.00019599,2]
[343054058,1732314636180,-240.88088748,0.00019599,2]
[343054060,1732314636189,-500.0,0.00019599,2]
[343054062,1732314636198,-500.0,0.00019599,2]
[343054064,1732314636207,-500.0,0.00019599,2]
[343054066,1732314636216,-500.0,0.00019599,2]
[343054068,1732314636225,-500.0,0.00019599,2]
[343054069,1732314636234,-500.0,0.00019599,2]
[343054071,1732314636243,-500.0,0.00019599,2]
[343054073,1732314636252,-500.0,0.00019599,2]
[343054075,1732314636261,-500.0,0.00019599,2]
[343054077,1732314636270,-500.0,0.00019599,2]
[343054079,1732314636280,-400.25219756,0.00019599,2]
[343054081,1732314636289,-500.0,0.00019599,2]
[343054083,1732314636299,-500.0,0.00019599,2]
[343054085,1732314636310,-500.0,0.00019599,2]
[343054087,1732314636319,-500.0,0.00019599,2]
[343054089,1732314636328,-500.0,0.00019599,2]
[343054091,1732314636337,-500.0,0.00019599,2]
[343054093,1732314636346,-28303.3138944,0.000196,2]
[343054095,1732314636356,-250000.0,0.000196,2]
[343054097,1732314636366,-937.26377636,0.00019899,2]
[343054099,1732314636375,-170.27957024,0.00019999,2]
[343054101,1732314636385,-208.83416968,0.00019999,2]
[343054103,1732314636394,-500.0,0.00019999,2]
[343054105,1732314636404,-179.25698087,0.00019999,2]
[343054107,1732314636413,-640.97326243,0.00019999,2]
[343054110,1732314636423,-160.0,0.0002,2]
[343054111,1732314636432,-18880.0,0.0002,2]
[343054113,1732314636442,-2137.77,0.000201,2]
[343054115,1732314636452,-153.0,0.00020192,2]
[343054117,1732314636463,-153.0,0.00020192,2]
[343054119,1732314636476,-500.0,0.00020217,2]
[343054121,1732314636486,-506.95754395,0.00020217,2]
[343054123,1732314636496,-552.05671275,0.00020217,2]
[343054125,1732314636506,-262.38503296,0.00020217,2]
[343054127,1732314636516,-500.0,0.00020217,2]
[343054129,1732314636526,-583.91587119,0.00020217,2]
[343054131,1732314636535,-216.02145019,0.00020217,2]
[343054133,1732314636544,-500.0,0.00020217,2]
[343054135,1732314636555,-623.7654921,0.00020217,2]
[343054137,1732314636564,-500.0,0.00020238,2]
[343054139,1732314636574,-500.0,0.00020238,2]
[343054141,1732314636583,-153.0,0.00020241,2]
[343054143,1732314636593,-500.55988657,0.00020247,2]
[343054145,1732314636603,-500.0,0.00020257,2]
[343054147,1732314636612,-500.0,0.00020257,2]
[343054149,1732314636622,-420.0,0.00020263,2]
[343054151,1732314636631,-500.0,0.00020322,2]
[343054153,1732314636640,-500.0,0.0002043,2]
[343054155,1732314636649,-420.0,0.0002044,2]
[343054157,1732314636659,-153.0,0.00020441,2]
[343054159,1732314636669,-273.447753,0.00020447,2]
[343054161,1732314636679,-500.0,0.00020485,2]
[343054163,1732314636689,-500.0,0.00020485,2]
[343054165,1732314636699,-212.667911,0.00020575,2]
[343054166,1732314636710,-327.74682489,0.00020622,2]
[343054168,1732314636720,-1000.0,0.00020786,2]
[343054169,1732314636730,-500.0,0.00020786,2]
[343054170,1732314636739,-8615.94738614,0.00020794,2]
[343054172,1732314636750,-151.0,0.000208,4]
[343054174,1732314636760,-1000.0,0.00020805,2]
[343054175,1732314636769,-500.0,0.00020805,2]
[343054177,1732314636779,-1000.0,0.0002087,2]
[343054180,1732314636788,-260.31,0.00021,2]
[343054182,1732314636798,-176.59474225,0.00021089,2]
[343054183,1732314636808,-2693.94531144,0.0002109,2]
[343054185,1732314636817,-3000.0,0.000211,2]
[343054187,1732314636826,-3000.0,0.0002111,2]
[343054188,1732314636836,-151.0,0.0002111,2]
[343054189,1732314636845,-3000.0,0.0002112,2]
[343054190,1732314636854,-3000.0,0.0002113,2]
[343054191,1732314636863,-3000.0,0.0002114,2]
[343054192,1732314636873,-3000.0,0.0002115,2]
[343054193,1732314636883,-3000.0,0.0002116,2]
[343054194,1732314636892,-3000.0,0.0002117,2]
[343054195,1732314636902,-3000.0,0.0002118,2]
[343054196,1732314636923,-3000.0,0.0002119,2]
[343054197,1732314636934,-3000.0,0.000212,2]
[343054198,1732314636944,-3000.0,0.0002121,2]
[343054199,1732314636955,-3000.0,0.0002122,2]
[343054200,1732314636967,-3000.0,0.0002123,2]
[343054201,1732314636977,-151.0,0.0002123,2]
[343054202,1732314636987,-3000.0,0.0002124,2]
[343054203,1732314636998,-3000.0,0.0002125,2]
[343054204,1732314637008,-3000.0,0.0002126,2]
[343054205,1732314637019,-3000.0,0.0002127,2]
[343054206,1732314637029,-3000.0,0.0002128,2]
[343054207,1732314637039,-3000.0,0.0002129,2]
[343054208,1732314637049,-3000.0,0.000213,2]
[343054209,1732314637060,-3000.0,0.0002131,2]
[343054210,1732314637070,-3000.0,0.0002132,2]
[343054211,1732314637080,-3000.0,0.0002133,2]
[343054212,1732314637090,-3000.0,0.0002134,2]
[343054213,1732314637101,-3000.0,0.0002135,2]
[343054214,1732314637111,-151.0,0.0002135,2]
[343054215,1732314637121,-3000.0,0.0002136,2]
[343054216,1732314637131,-3000.0,0.0002137,2]
[343054217,1732314637142,-3000.0,0.0002138,2]
[343054218,1732314637151,-3000.0,0.0002139,2]
[343054219,1732314637161,-3000.0,0.000214,2]
[343054220,1732314637171,-3000.0,0.0002141,2]
[343054221,1732314637181,-3000.0,0.0002142,2]
[343054222,1732314637191,-176.85844,0.0002142,2]
[343054223,1732314637201,-829.48830807,0.0002143,2]
[343054224,1732314637218,-2170.51169193,0.0002143,2]
[343054225,1732314637227,-3465.758015,0.0002144,2]
[343054226,1732314637237,-151.0,0.000217,3]
[343054227,1732314637247,-502.19648279,0.00021788,2]
[343054228,1732314637256,-937.26377634,0.00021855,2]
[343054229,1732314637266,-530.0,0.00021856,2]
[343054230,1732314637275,-1110.0,0.00021856,2]
[343054231,1732314637285,-568.37003394,0.00021856,2]
[343054232,1732314637297,-1812.62996606,0.00021856,2]
[343054233,1732314637307,-1320.14634319,0.00021872,2]
[343054234,1732314637316,-161.0,0.00022,2]
[343054235,1732314637326,-258.0,0.00022,2]
[343054236,1732314637336,-587.0,0.00022096,2]
[343054237,1732314637346,-222.594912,0.00022132,7]
[343054238,1732314637356,-258.0,0.00022192,2]
[343054239,1732314637366,-300.469148,0.000224,10]
[343054240,1732314637376,-587.0,0.00022484,2]
[343054241,1732314637387,-151.0,0.000226,6]
[343054242,1732314637397,-616.0,0.000228,2]
[343054243,1732314637407,-211.3465353,0.00022959,2]
[343054244,1732314637417,-161.0,0.00023014,2]
[343054245,1732314637428,-258.0,0.00023014,2]
[343054246,1732314637438,-301.5407207,0.00023288,2]
[343054247,1732314637447,-151.0,0.000235,7]
[343054248,1732314637458,-289.571262,0.000235,5]
[343054249,1732314637473,-339.153,0.00023616,4]
[343054250,1732314637483,-206.297459,0.00023616,4]
[343054251,1732314637493,-937.26377634,0.00023811,2]
[343054252,1732314637503,-1050.0,0.00024,2]
[343054253,1732314637514,-470.0,0.00024095,2]
[343054254,1732314637524,-161.0,0.00024164,2]
[343054255,1732314637534,-265.0,0.00024164,2]
[343054256,1732314637544,-151.0,0.000244,7]
[343054257,1732314637555,-151.0,0.000244,6]
[343054258,1732314637566,-151.0,0.00024658,7]
[343054259,1732314637575,-151.0,0.00024658,7]
[343054261,1732314637585,-151.0,0.00024658,7]
[343054262,1732314637595,-200.0,0.00024658,2]
[343054263,1732314637605,-380.0,0.00024658,2]
[343054264,1732314637615,-218.262526,0.00024658,2]
[343054265,1732314637624,-200.0,0.00024658,15]
[343054266,1732314637634,-500.0,0.00024658,2]
[343054267,1732314637644,-500.0,0.00024658,2]
[343054268,1732314637653,-400.16497859,0.00024658,2]
[343054269,1732314637664,-500.0,0.00024658,2]
[343054270,1732314637674,-42604.79,0.000247,2]
[343054271,1732314637684,-176.85844,0.000247,7]
[343054272,1732314637694,-500.0,0.0002472,9]
[343054273,1732314637704,-500.0,0.0002472,9]
[343054274,1732314637718,-823.0,0.00024732,2]
[343054275,1732314637729,-341.591,0.00024856,2]
[343054276,1732314637739,-1086.341,0.00024856,2]
[343054277,1732314637749,-300.0,0.00025,2]
[343054278,1732314637761,-300.0,0.00025,2]
[343054279,1732314637771,-273.4,0.00025,2]
[343054280,1732314637781,-300.0,0.00025,2]
[343054281,1732314637791,-300.0,0.00025,2]
[343054282,1732314637801,-273.399999,0.00025,2]
[343054283,1732314637811,-4913.6478417,0.00025,3]
[343054285,1732314637822,-844.076577,0.00025,17]
[343054287,1732314637831,-3955.08,0.00025,2]
[343054289,1732314637841,-500.0,0.00025275,2]
[343054291,1732314637850,-151.0,0.000253,11]
[343054293,1732314637860,-151.0,0.000253,13]
[343054294,1732314637870,-500.0,0.0002535,2]
[343054295,1732314637879,-500.0,0.000256,2]
[343054296,1732314637889,-300.0,0.000257,2]
[343054297,1732314637899,-937.26377634,0.00025766,2]
[343054298,1732314637909,-258.0,0.00025775,2]
[343054299,1732314637918,-1000.0,0.00025823,2]
[343054300,1732314637928,-1000.0,0.00025898,2]
[343054301,1732314637939,-300.0,0.000259,2]
[343054302,1732314637948,-1323.2363598,0.000259,2]
[343054303,1732314637958,-151.0,0.00025927,5]
[343054304,1732314637968,-1000.5,0.00026,31]
[343054305,1732314637978,-1009.4,0.00026,31]
[343054306,1732314637988,-42604.79,0.00026,2]
[343054307,1732314638132,-176.85844,0.00026,7]
[343054308,1732314638142,-23005.93696094,0.00026,30]
[343054309,1732314638151,-151.0,0.000262,12]
[343054310,1732314638160,-151.0,0.000262,17]
[343054311,1732314638170,-1323.23635978,0.00026213,2]
[343054312,1732314638179,-151.0,0.000263,11]
[343054313,1732314638188,-660.0,0.00026384,2]
[343054314,1732314638198,-1323.23635978,0.00026525,2]
[343054315,1732314638207,-164.52,0.000266,31]
[343054316,1732314638218,-151.0,0.00026618,6]
[343054317,1732314638227,-300.0,0.000267,2]
[343054318,1732314638237,-1006.34291362,0.00026825,2]
[343054319,1732314638246,-1323.23635978,0.00026838,2]
[343054320,1732314638256,-690.66649808,0.0002688,2]
[343054321,1732314638265,-1500.0,0.000269,2]
[343054322,1732314638275,-300.0,0.000269,2]
[343054323,1732314638285,-223.703014,0.000269,2]
[343054324,1732314638295,-273.447753,0.00026921,2]
[343054325,1732314638304,-151.0,0.000271,13]
[343054326,1732314638313,-151.0,0.000271,17]
[343054327,1732314638323,-164.52,0.000271,31]
[343054328,1732314638332,-164.52,0.000271,31]
[343054329,1732314638341,-1323.23635978,0.0002715,2]
[343054330,1732314638351,-290.67486232,0.00027173,2]
[343054331,1732314638360,-151.0,0.000272,17]
[343054332,1732314638370,-42604.79,0.000272,2]
[343054333,1732314638379,-176.85844,0.000272,7]
[343054334,1732314638388,-437.0,0.00027205,2]
[343054335,1732314638398,-151.0,0.00027309,6]
[343054336,1732314638408,-258.0,0.00027386,2]
[343054337,1732314638417,-352.03173786,0.00027397,2]
[343054338,1732314638426,-500.0,0.00027397,2]
[343054340,1732314638436,-500.0,0.00027397,6]
[343054341,1732314638445,-500.0,0.00027397,10]
[343054342,1732314638455,-505.61489863,0.00027397,14]
[343054344,1732314638470,-604.48,0.00027397,2]
[343054346,1732314638482,-400.0,0.00027397,60]
[343054347,1732314638491,-151.0,0.00027397,7]
[343054348,1732314638502,-160.815348,0.00027397,7]
[343054349,1732314638513,-1323.23635978,0.00027463,2]
[343054350,1732314638522,-164.52,0.000276,31]
[343054351,1732314638533,-164.52,0.000276,31]
[343054352,1732314638543,-258.0,0.00027616,2]
[343054353,1732314638553,-300.0,0.000277,2]
[343054354,1732314638563,-937.26377634,0.00027722,2]
[343054355,1732314638572,-1323.23635978,0.00027775,2]
[343054356,1732314638582,-160.0,0.00027821,10]
[343054357,1732314638591,-160.0,0.00027821,10]
[343054358,1732314638600,-95446.23402619,0.00027822,2]
[343054359,1732314638609,-176.85844,0.00027822,7]
[343054360,1732314638619,-300.0,0.000279,2]
[343054361,1732314638628,-160.0,0.00027999,10]
[343054362,1732314638637,-160.0,0.00027999,10]
[343054363,1732314638646,-142084.68911132,0.00028,30]
[343054364,1732314638664,-15933.9918641,0.00028,30]
[343054365,1732314638673,-2000.0,0.00028,4]
[343054366,1732314638682,-4371.20348691,0.00028,2]
[343054367,1732314638693,-1196.7670448,0.00028,2]
[343054368,1732314639069,-1451.33066236,0.00019499,2]